bitfinex-derivatives/quotes_SOLF0:USTF0_20251222
["timestamp","ask_amount","ask_price","bid_price","bid_amount"]
[1766374033992,4.97346073,126.11,126.03,12.0131]
[1766374033993,1.48952802,126.1,126.03,12.0131]
[1766374034795,0.05359338,126.08,126.05,0.05538698]
[1766374035509,6.40952802,126.13,126.05,4.92538698]
[1766374035696,6.40952802,126.13,126.05,4.87]
[1766374036396,0.05107947,126.1,126.08,0.05431706]
[1766374036804,0.05107947,126.1,126.08,0.00431706]
[1766374037102,0.05107947,126.1,126.05,4.87]
[1766374038007,0.05107947,126.1,126.06,0.0566756]
[1766374040296,1.48952802,126.09,126.03,4.87]
[1766374040501,6.40952802,126.09,126.03,4.87]
[1766374040699,4.92,126.08,126.02,7.1437]
[1766374041595,0.0520656,126.06,126.04,0.05510488]
[1766374045299,0.0520656,126.06,126.01,4.87]
[1766374046006,4.9720656,126.06,125.99,4.87]
[1766374046202,4.92,126.06,125.99,4.87]
[1766374046395,0.06105689,126.04,126.01,0.05461004]
[1766374046710,4.98105689,126.04,126.01,0.05461004]
[1766374048012,4.98105689,126.04,126.01,0.00461004]
[1766374049612,4.98105689,126.04,125.97,4.87]
[1766374050514,4.98105689,126.04,125.99,0.05561148]
[1766374051703,12.12415689,126.04,125.99,0.05561148]
[1766374052019,1.48952802,126.03,125.99,0.05561148]
[1766374052202,6.73952802,126.03,125.99,0.05561148]
[1766374054515,5.25,126.02,125.96,7.1474]
[1766374054717,5.25,126.02,125.96,12.3774]
[1766374055614,0.05404837,126.0,125.98,0.05795918]
[1766374058920,0.00404837,126.0,125.98,0.05795918]
[1766374062816,4.9,126.03,125.98,7.20425918]
[1766374063027,4.9,126.05,125.98,5.37795918]
[1766374063223,6.38952802,126.07,125.99,5.32]
[1766374063923,0.05297624,126.04,126.02,0.0537528]
[1766374064117,0.00297624,126.04,126.02,0.0537528]
[1766374064816,4.9,126.07,126.02,12.5177528]
[1766374065719,0.05761457,126.06,126.02,12.5177528]
[1766374072729,4.9,126.09,126.03,12.4634]
[1766374073922,0.0520317,126.07,126.05,0.05367251]
[1766374077238,4.9,126.12,126.06,5.32]
[1766374077535,6.38952802,126.11,126.04,5.32]
[1766374078323,0.05227624,126.09,126.06,0.05495029]
[1766374083935,6.38952802,126.2,126.11,5.32]
[1766374084325,6.38952802,126.2,126.13,12.4578]
[1766374084923,0.05916468,126.18,126.15,0.05880595]
[1766374089735,6.4386927,126.18,126.11,59.0487]
[1766374089923,6.4386927,126.18,126.12,5.05]
[1766374090833,6.4386927,126.18,126.14,0.05375672]
[1766374093431,1.5486927,126.18,126.14,0.05375672]
[1766374093636,0.05916468,126.18,126.14,0.05375672]
[1766374105335,4.94916468,126.18,126.14,0.05375672]
[1766374108249,4.94916468,126.18,126.14,0.00375672]
[1766374110751,12.08436468,126.18,126.14,0.00375672]
[1766374111051,5.32,126.17,126.14,0.00375672]
[1766374111232,0.05916468,126.18,126.14,0.00375672]
[1766374115747,0.05916468,126.18,126.14,4.88375672]
[1766374119559,0.05916468,126.18,126.14,0.00375672]
[1766374121554,4.89916468,126.18,126.14,0.00375672]
[1766374123248,12.03436468,126.18,126.14,0.00375672]
[1766374123451,4.84,126.17,126.14,0.00375672]
[1766374124764,4.84,126.16,126.08,4.88]
[1766374125564,46.82,126.17,126.08,4.88]
[1766374125565,11.9769,126.15,126.08,4.88]
[1766374125765,0.05123411,126.13,126.1,0.05852258]
[1766374126455,11.9761,126.17,126.1,4.93852258]
[1766374127260,0.05871339,126.15,126.1,4.93852258]
[1766374128462,0.05871339,126.15,126.11,4.88]
[1766374141467,4.89871339,126.15,126.1,0.05852258]
[1766374142371,0.05871339,126.15,126.1,4.93852258]
[1766374155583,5.24871339,126.15,126.1,4.93852258]
[1766374160491,0.05871339,126.15,126.1,4.93852258]
[1766374163097,0.05871339,126.15,126.1,6.42638605]
[1766374163397,0.05871339,126.15,126.1,4.93852258]
[1766374166806,5.19,126.14,126.1,0.05852258]
[1766374170412,5.19,126.12,126.07,5.21]
[1766374170612,5.19,126.1,126.05,5.21]
[1766374171304,5.19,126.1,126.03,1.48786347]
[1766374171305,6.67786347,126.09,126.03,5.21]
[1766374171500,0.06077705,126.07,126.05,0.05998036]
[1766374172899,5.19,126.11,126.05,4.94998036]
[1766374173106,5.19,126.11,126.05,6.43784383]
[1766374173810,0.05086232,126.09,126.05,6.43784383]
[1766374177212,0.05086232,126.09,126.05,4.94998036]
[1766374178616,7.1384,126.13,126.06,4.92]
[1766374178822,5.05,126.15,126.08,4.92]
[1766374179821,0.05845179,126.13,126.1,0.0604951]
[1766374180811,111.004,126.17,126.11,6.40786347]
[1766374180812,12.1858,126.17,126.11,6.40786347]
[1766374181916,0.05490731,126.15,126.13,0.05680066]
[1766374183419,59.0249,126.19,126.13,4.97680066]
[1766374184419,0.05300321,126.17,126.13,4.97680066]
[1766374194928,0.00300321,126.17,126.13,4.97680066]
[1766374201454,59.0033,126.22,126.15,4.92]
[1766374201949,59.0033,126.22,126.13,7.1377]
[1766374201950,12.1818,126.24,126.17,4.92]
[1766374202335,0.05241006,126.22,126.19,0.05387251]
[1766374203841,0.05241006,126.22,126.19,4.97387251]
[1766374204742,0.00241006,126.22,126.19,4.97387251]
[1766374205454,51.87,126.26,126.2,4.9]
[1766374205652,46.82,126.26,126.2,4.9]
[1766374205953,46.82,126.26,126.21,4.9]
[1766374206346,0.05720279,126.25,126.22,0.05244644]
[1766374207347,1.48786347,126.29,126.22,4.95244644]
[1766374207650,6.45786347,126.31,126.23,4.9]
[1766374207847,46.82,126.32,126.23,4.9]
[1766374208047,1.48786347,126.34,126.23,110.9467]
[1766374208238,0.06110967,126.3,126.27,0.05759478]
[1766374208446,1.54897314,126.3,126.27,0.05759478]
[1766374208647,1.54897314,126.3,126.17,110.9935]
[1766374208648,1.48786347,126.28,126.2,55.44146347]
[1766374209253,53.9481,126.31,126.21,1.48786347]
[1766374209444,1.48786347,126.33,126.25,1.48786347]
[1766374209657,1.48786347,126.33,126.28,0.05079407]
[1766374210354,6.45786347,126.34,126.28,0.05079407]
[1766374210766,0.05948476,126.32,126.28,0.05079407]
[1766374211151,1.48786347,126.35,126.28,0.05079407]
[1766374211352,1.48786347,126.35,126.27,1.48786347]
[1766374211552,6.45786347,126.35,126.26,55.43826347]
[1766374212261,6.45786347,126.35,126.29,0.05377636]
[1766374212262,0.02221626,126.32,126.29,0.05377636]
[1766374214244,1.48786347,126.31,126.23,1.48786347]
[1766374214449,4.97,126.3,126.22,46.8]
[1766374214752,6.45786347,126.3,126.22,46.8]
[1766374214956,13.58546347,126.32,126.23,1.48786347]
[1766374215355,0.06059424,126.29,126.26,0.0502681]
[1766374215754,0.00059424,126.29,126.26,0.0502681]
[1766374218063,7.1262,126.34,126.26,0.0502681]
[1766374218266,7.1262,126.34,126.24,7.1315]
[1766374219164,7.1262,126.34,126.28,0.05717633]
[1766374219967,4.97,126.35,126.28,0.05717633]
[1766374221463,4.97,126.37,126.28,0.05717633]
[1766374221665,4.97,126.37,126.31,0.05101817]
[1766374221972,110.8042,126.4,126.31,0.05101817]
[1766374221973,4.97,126.4,126.31,0.05101817]
[1766374222162,4.97,126.4,126.34,0.06085302]
[1766374222362,12.093,126.4,126.34,0.06085302]
[1766374222665,4.97,126.4,126.34,0.06085302]
[1766374225073,4.97,126.39,126.34,0.06085302]
[1766374226474,12.0934,126.39,126.34,0.06085302]
[1766374226774,12.0934,126.39,126.31,7.1276]
[1766374227470,5.5,126.38,126.29,56.22831073]
[1766374227672,5.5,126.4,126.32,0.05166297]
[1766374227859,5.5,126.42,126.31,113.19191073]
[1766374228262,5.5,126.41,126.33,7.1265]
[1766374228773,5.5,126.41,126.36,0.05044485]
[1766374230673,5.5,126.41,126.36,0.00044485]
[1766374230872,2.31951073,126.4,126.29,49.07951073]
[1766374231172,5.5,126.39,126.29,49.07951073]
[1766374231574,12.6234,126.39,126.3,7.128]
[1766374231774,0.05381971,126.36,126.33,0.05125838]
[1766374232175,5.55381971,126.36,126.28,7.1291]
[1766374232371,5.5,126.36,126.28,7.1291]
[1766374232679,5.5,126.35,126.26,7.1303]
[1766374233277,0.05745349,126.32,126.29,0.0553862]
[1766374233986,5.5,126.31,126.24,7.1316]
[1766374234166,5.5,126.31,126.22,46.76]
[1766374234368,5.5,126.29,126.22,46.76]
[1766374234962,5.55329689,126.27,126.17,46.76]
[1766374235164,5.5,126.27,126.18,110.9901]
[1766374235566,5.08,126.3,126.21,7.1331]
[1766374235767,5.08,126.3,126.2,110.9712]
[1766374235973,0.00051646,126.26,126.24,0.05282322]
[1766374237688,5.08,126.3,126.24,0.05282322]
[1766374238770,0.05616478,126.28,126.24,0.05282322]
[1766374240175,5.13616478,126.28,126.24,0.05282322]
[1766374240377,5.13616478,126.28,126.16,111.0068]
[1766374240583,5.08,126.28,126.17,46.78]
[1766374240783,5.08,126.27,126.18,7.1349]
[1766374241574,0.05954018,126.24,126.21,0.06039128]
[1766374242273,5.08,126.27,126.21,0.06039128]
[1766374243074,0.05858192,126.25,126.21,0.06039128]
[1766374244579,5.13858192,126.25,126.21,0.06039128]
[1766374247781,5.13858192,126.25,126.21,0.00039128]
[1766374248188,5.13858192,126.25,126.16,7.1361]
[1766374248490,5.08,126.23,126.14,53.9172]
[1766374249003,5.08,126.23,126.14,157.801]
[1766374249284,0.05076812,126.2,126.17,0.05228779]
[1766374250777,5.13076812,126.2,126.1,167.8538]
[1766374250984,5.08,126.2,126.1,167.8538]
[1766374251189,5.08,126.2,126.11,111.0528]
[1766374251888,0.05830975,126.17,126.14,0.05379478]
[1766374252089,5.08,126.2,126.14,0.05379478]
[1766374253191,0.05294552,126.18,126.14,0.05379478]
[1766374254284,0.05294552,126.18,126.14,7.19099478]
[1766374254484,5.08,126.23,126.15,111.0154]
[1766374254695,5.08,126.23,126.15,157.8154]
[1766374254883,5.08,126.23,126.16,7.1358]
[1766374255089,5.08,126.23,126.15,157.8154]
[1766374255593,0.003549,126.2,126.18,0.05481787]
[1766374256793,0.003549,126.2,126.18,7.18981787]
[1766374259393,0.003549,126.2,126.18,0.05481787]
[1766374263087,0.003549,126.2,126.18,0.00481787]
[1766374263294,5.083549,126.2,126.11,121.0528]
[1766374263597,5.08,126.2,126.12,46.8]
[1766374263988,5.08,126.2,126.14,7.1373]
[1766374264491,0.05478642,126.18,126.16,0.05778474]
[1766374271703,0.05478642,126.18,126.12,53.9381]
[1766374272001,5.52478642,126.18,126.12,46.8]
[1766374272805,0.05478642,126.18,126.14,0.05893651]
[1766374273410,5.52478642,126.18,126.14,0.05893651]
[1766374277009,0.05478642,126.18,126.14,0.05893651]
[1766374278805,0.00478642,126.18,126.14,0.05893651]
[1766374279099,0.00478642,126.18,126.14,111.08263651]
[1766374279302,5.47,126.25,126.16,111.0028]
[1766374279498,5.47,126.25,126.17,157.8181]
[1766374279698,5.47,126.25,126.17,46.82]
[1766374279899,5.47,126.28,126.19,110.9807]
[1766374280098,120.75333266,126.35,126.19,110.9807]
[1766374280099,5.47,126.31,126.21,110.9647]
[1766374280304,5.47,126.31,126.25,0.05041198]
[1766374280305,0.05970688,126.27,126.25,0.05041198]
[1766374281504,0.05970688,126.27,126.25,0.00041198]
[1766374282006,5.52970688,126.27,126.25,0.00041198]
[1766374283497,7.10970688,126.27,126.18,53.9547]
[1766374283704,5.47,126.27,126.18,53.9547]
[1766374284619,0.05143594,126.24,126.21,0.05227413]
[1766374287714,5.47,126.27,126.21,0.05227413]
[1766374287911,110.8805,126.31,126.21,0.05227413]
[1766374287912,5.32,126.3,126.21,0.05227413]
[1766374288118,5.32,126.3,126.2,10.0]
[1766374288614,5.32,126.29,126.22,7.1327]
[1766374288917,0.06061724,126.27,126.24,0.06093557]
[1766374289914,5.38061724,126.27,126.24,0.00093557]
[1766374290120,5.38061724,126.27,126.17,120.9938]
[1766374290320,5.32,126.27,126.17,120.9938]
[1766374290633,5.32,126.26,126.19,7.1344]
[1766374291121,0.05097737,126.24,126.21,0.05152614]
[1766374308750,0.00097737,126.24,126.21,0.05152614]
[1766374308949,0.00097737,126.24,126.21,7.18482614]
[1766374310438,0.00097737,126.24,126.21,0.05152614]
[1766374310638,5.62097737,126.24,126.21,0.05152614]
[1766374313250,5.62,126.23,126.16,46.8]
[1766374313554,5.62,126.21,126.13,111.0309]
[1766374313747,5.62,126.24,126.16,112.48877676]
[1766374313954,5.62,126.24,126.16,1.48537676]
[1766374314349,0.05762791,126.21,126.19,0.05075708]
[1766374314549,0.05762791,126.21,126.19,7.18505708]
[1766374314752,7.1302,126.27,126.19,7.18505708]
[1766374314753,5.62,126.26,126.19,0.05075708]
[1766374314947,5.62,126.26,126.17,110.9972]
[1766374315649,0.0556204,126.23,126.2,7.19432451]
[1766374319257,0.0556204,126.23,126.2,0.06042451]
[1766374320463,5.62,126.26,126.2,7.19432451]
[1766374321162,5.62,126.26,126.21,7.1333]
[1766374321462,0.00137392,126.25,126.2,0.06042451]
[1766374321666,0.00137392,126.25,126.19,110.9783]
[1766374321857,0.00137392,126.25,126.2,110.97]
[1766374322466,0.00137392,126.25,126.23,7.132]
[1766374322661,5.62,126.33,126.24,1.48537676]
[1766374322864,5.62,126.33,126.24,112.42157676]
[1766374323058,7.126,126.35,126.27,110.9122]
[1766374323059,5.62,126.35,126.27,110.9122]
[1766374323264,1.48537676,126.36,126.27,110.9122]
[1766374323566,0.05304567,126.33,126.3,0.06109927]
[1766374323863,0.00304567,126.33,126.3,0.06109927]
[1766374335566,0.00304567,126.33,126.25,53.9308]
[1766374335567,5.71304567,126.33,126.25,53.9308]
[1766374335867,5.71,126.33,126.25,46.8]
[1766374336067,3.97230987,126.34,126.25,46.8]
[1766374336068,5.71,126.31,126.25,46.8]
[1766374336771,0.05596969,126.29,126.27,0.05542854]
[1766374337276,110.837,126.36,126.27,0.05542854]
[1766374337277,5.71,126.36,126.27,0.05542854]
[1766374337571,5.71,126.36,126.25,157.7275]
[1766374338075,0.03473364,126.32,126.29,0.05830759]
[1766374341671,5.74473364,126.32,126.29,0.05830759]
[1766374343670,0.03473364,126.32,126.29,0.05830759]
[1766374344083,12.8341,126.38,126.3,7.1282]
[1766374344387,5.71,126.37,126.3,7.1282]
[1766374345167,5.71,126.37,126.32,0.05672499]
[1766374345975,7.123,126.4,126.32,7.18372499]
[1766374346175,7.123,126.4,126.29,110.8898]
[1766374346176,5.71,126.4,126.35,0.05285014]
[1766374346382,7.1218,126.42,126.35,0.05285014]
[1766374346383,5.71,126.42,126.35,0.05285014]
[1766374346679,5.71,126.4,126.35,0.05285014]
[1766374346879,5.71,126.4,126.36,0.05263331]
[1766374347080,5.71,126.4,126.36,0.00263331]
[1766374348073,5.82000001,126.39,126.36,0.00263331]
[1766374348474,0.05000001,126.39,126.36,0.00263331]
[1766374355178,5.74000001,126.39,126.36,0.00263331]
[1766374355481,5.74000001,126.39,126.3,46.78]
[1766374355482,5.69,126.38,126.3,46.78]
[1766374356377,0.05263332,126.35,126.33,0.00124138]
[1766374356576,5.74263332,126.35,126.33,0.00124138]
[1766374356773,5.74263332,126.35,126.25,46.76]
[1766374357073,5.69,126.34,126.26,7.1304]
[1766374357387,52.45,126.37,126.26,110.916]
[1766374357779,0.0539513,126.33,126.3,0.05070457]
[1766374358381,0.0039513,126.33,126.3,0.05070457]
[1766374358975,5.69,126.37,126.3,0.05070457]
[1766374359181,12.8135,126.39,126.3,0.05070457]
[1766374359380,12.8135,126.39,126.28,134.6685]
[1766374359583,5.69,126.38,126.28,134.6685]
[1766374359977,5.69,126.38,126.32,0.05344521]
[1766374360183,0.0499234,126.34,126.32,0.05344521]
[1766374360592,5.69,126.38,126.32,0.05344521]
[1766374361785,5.69,126.38,126.32,7.18044521]
[1766374367895,110.7794,126.43,126.32,110.91804521]
[1766374367896,5.69,126.4,126.32,110.91804521]
[1766374368091,5.69,126.4,126.35,0.05627703]
[1766374368301,5.69,126.4,126.35,7.18167703]
[1766374368494,5.69,126.42,126.35,0.05627703]
[1766374368692,5.69,126.42,126.37,0.05008574]
[1766374373106,5.69,126.42,126.37,8.574e-05]
[1766374374199,5.74,126.41,126.37,8.574e-05]
[1766374374402,5.69,126.4,126.33,10.0]
[1766374375496,5.74008574,126.38,126.35,0.00256292]
[1766374376593,5.69,126.37,126.29,7.1284]
[1766374376798,2.3165244,126.42,126.32,3.4]
[1766374377597,0.05772897,126.38,126.36,0.05737354]
[1766374378410,298.37734505,126.46,126.36,3.41737354]
[1766374378603,159.8051244,126.48,126.36,3.36]
[1766374378913,5.69,126.45,126.36,3.36]
[1766374379612,0.04333345,126.42,126.39,0.05364729]
[1766374380426,0.04333345,126.42,126.34,50.18]
[1766374380427,5.73333345,126.42,126.34,50.18]
[1766374380623,5.69,126.42,126.34,50.18]
[1766374381224,5.69,126.41,126.34,46.76]
[1766374381527,5.74935353,126.39,126.36,0.0005474]
[1766374387624,5.59,126.37,126.29,3.56]
[1766374387818,0.05935353,126.39,126.27,3.56]
[1766374387819,5.59,126.35,126.27,3.56]
[1766374388023,5.59,126.35,126.28,7.1291]
[1766374388218,12.92329822,126.42,126.29,3.56]
[1766374388420,5.59,126.41,126.33,3.56]
[1766374388622,0.05846166,126.38,126.29,8.26]
[1766374388827,5.59,126.38,126.29,119.1519]
[1766374389623,0.0007336,126.35,126.32,0.05090508]
[1766374389938,5.59,126.43,126.34,110.8498]
[1766374390929,0.05853767,126.4,126.37,0.05413579]
[1766374392446,5.59,126.49,126.39,110.8061]
[1766374392731,5.59,126.49,126.4,110.7932]
[1766374392922,5.59,126.49,126.41,110.789]
[1766374393533,0.05313401,126.46,126.44,0.05987598]
[1766374393926,0.00313401,126.46,126.44,0.05987598]
[1766374396138,5.59,126.53,126.44,0.05987598]
[1766374396334,5.59,126.53,126.43,117.8896]
[1766374396637,110.64,126.59,126.41,110.7865]
[1766374396638,5.59,126.6,126.48,110.7264]
[1766374396830,5.59,126.58,126.48,46.74]
[1766374397030,5.59,126.57,126.48,46.74]
[1766374397226,0.0457911,126.54,126.51,0.06031088]
[1766374397538,0.0457911,126.54,126.51,0.00031088]
[1766374399128,5.6357911,126.54,126.48,46.74]
[1766374399328,5.6357911,126.54,126.44,7.1204]
[1766374399536,5.59,126.54,126.44,53.8604]
[1766374400132,5.59,126.54,126.44,46.74]
[1766374400133,0.05508984,126.5,126.44,46.74]
[1766374401230,0.05508984,126.5,126.46,0.05441079]
[1766374401432,5.64508984,126.5,126.46,0.00441079]
[1766374401626,0.05508984,126.5,126.46,0.00441079]
[1766374403736,5.64508984,126.5,126.46,0.00441079]
[1766374404137,5.64508984,126.5,126.41,46.72]
[1766374404341,5.64508984,126.5,126.38,110.8099]
[1766374404342,5.59,126.48,126.38,7.1237]
[1766374404638,5.59,126.47,126.37,46.72]
[1766374405136,0.05005929,126.43,126.41,0.05193271]
[1766374405339,5.59,126.47,126.41,0.05193271]
[1766374406238,0.0539067,126.45,126.41,0.05193271]
[1766374412773,6.0439067,126.45,126.41,0.05193271]
[1766374412945,6.0439067,126.45,126.37,46.72]
[1766374413139,5.99,126.45,126.37,46.72]
[1766374413340,5.99,126.44,126.37,46.72]
[1766374414054,0.05423761,126.42,126.39,0.05511037]
[1766374414648,6.04423761,126.42,126.37,46.72]
[1766374414945,6.04423761,126.42,126.34,7.1258]
[1766374415148,5.99,126.42,126.34,7.1258]
[1766374415845,0.00321646,126.39,126.37,0.05447337]
[1766374419354,12.9399,126.45,126.37,0.05447337]
[1766374419544,12.9399,126.45,126.35,110.839]
[1766374420254,0.05016298,126.41,126.39,0.05834802]
[1766374425357,0.05016298,126.41,126.35,56.74]
[1766374425655,5.87016298,126.41,126.35,46.74]
[1766374426555,5.87016298,126.41,126.37,0.05992104]
[1766374430951,5.87016298,126.41,126.34,7.1257]
[1766374432153,5.87016298,126.41,126.36,0.04999838]
[1766374434859,0.05016298,126.41,126.36,0.04999838]
[1766374438665,5.87016298,126.41,126.36,0.04999838]
[1766374438967,7.35194497,126.41,126.36,0.04999838]
[1766374439166,5.82,126.4,126.36,0.04999838]
[1766374440566,5.82,126.4,126.33,7.1262]
[1766374440875,7.30178199,126.36,126.28,112.38058199]
[1766374441161,5.82,126.35,126.28,7.129]
[1766374441363,5.82,126.35,126.26,48.22178199]
[1766374441569,5.82,126.33,126.29,0.05279171]
[1766374441764,7.35241556,126.32,126.26,46.74]
[1766374442072,5.87063357,126.32,126.26,46.74]
[1766374442673,5.87063357,126.32,126.27,7.1299]
[1766374442857,5.87063357,126.32,126.28,0.05636352]
[1766374451371,5.87063357,126.32,126.26,46.74]
[1766374451561,5.87063357,126.32,126.23,7.1321]
[1766374451762,5.82,126.32,126.22,49.54298281]
[1766374451967,6.57,126.31,126.22,160.49608281]
[1766374452268,0.05483095,126.28,126.25,0.05645582]
[1766374454274,6.62483095,126.28,126.22,53.8925]
[1766374454777,6.62483095,126.28,126.22,46.76]
[1766374454976,6.62483095,126.28,126.17,110.9971]
[1766374455278,6.57,126.28,126.18,46.76]
[1766374455483,0.05267599,126.24,126.22,0.05967302]
[1766374457879,0.00267599,126.24,126.22,0.05967302]
[1766374458279,6.57267599,126.24,126.19,7.1341]
[1766374458578,6.57267599,126.24,126.18,46.76]
[1766374458880,6.57,126.23,126.14,46.78]
[1766374459271,6.57,126.19,126.17,0.00019773]
[1766374459476,6.57,126.19,126.13,111.0276]
[1766374459477,6.57,126.19,126.11,111.0513]
[1766374460085,50.75547539,126.23,126.06,111.0888]
[1766374460086,6.57,126.16,126.06,111.0888]
[1766374460284,6.57,126.16,126.05,111.1013]
[1766374460285,6.57,126.16,126.07,222.1619]
[1766374460475,6.57,126.16,126.1,0.05276413]
[1766374460476,0.06039259,126.12,126.1,0.05276413]
[1766374460675,6.57,126.19,126.1,0.05276413]
[1766374460986,6.57,126.19,126.09,157.8498]
[1766374461285,6.57,126.19,126.1,111.0611]
[1766374461483,6.57,126.19,126.11,111.0521]
[1766374461688,0.05072441,126.16,126.14,0.05429793]
[1766374461887,6.57,126.24,126.14,0.05429793]
[1766374462074,6.57,126.23,126.14,1.48625739]
[1766374462986,0.05430598,126.2,126.17,0.06035349]
[1766374465576,6.62430598,126.2,126.17,0.00035349]
[1766374473887,6.62430598,126.2,126.1,7.1393]
[1766374474101,6.57,126.2,126.1,7.1393]
[1766374474292,6.61,126.18,126.1,7.1393]
[1766374474989,0.05477306,126.15,126.13,0.05055843]
[1766374477089,6.76477306,126.15,126.13,0.00055843]
[1766374478389,0.05477306,126.15,126.13,0.00055843]
[1766374479899,6.76477306,126.15,126.05,111.0983]
[1766374480196,6.71,126.14,126.04,111.1135]
[1766374480787,0.05945825,126.1,126.08,0.05868604]
[1766374481197,13.8461,126.17,126.08,7.19908604]
[1766374481400,6.71,126.17,126.08,111.0784]
[1766374482189,0.05236622,126.14,126.11,0.0533257]
[1766374482691,6.76236622,126.14,126.11,0.0033257]
[1766374483094,6.76236622,126.14,126.04,111.1135]
[1766374483297,6.71,126.14,126.04,111.1135]
[1766374484095,6.71,126.13,126.08,0.05727714]
[1766374484500,6.71,126.16,126.08,0.05727714]
[1766374484700,6.71,126.16,126.06,111.0932]
[1766374485304,0.05536571,126.12,126.1,0.05512617]
[1766374489007,6.71,126.19,126.11,112.6317]
[1766374489209,6.71,126.19,126.1,111.0543]
[1766374489603,6.71,126.19,126.12,7.1384]
[1766374490001,0.05879353,126.17,126.14,0.05561413]
[1766374491705,6.71,126.21,126.14,7.19281413]
[1766374492915,0.05700994,126.19,126.14,7.19281413]
[1766374494118,0.05700994,126.19,126.14,0.05561413]
[1766374494317,6.76700994,126.19,126.14,0.05561413]
[1766374497522,6.76700994,126.19,126.11,7.1387]
[1766374497720,6.71,126.19,126.09,111.0694]
[1766374498518,6.71,126.19,126.13,0.05599358]
[1766374498723,0.05247538,126.15,126.13,0.05599358]
[1766374498920,0.05247538,126.15,126.08,157.9149]
[1766374500025,0.05247538,126.15,126.1,0.05776115]
[1766374500229,0.05247538,126.15,126.1,7.19726115]
[1766374500425,0.05247538,126.15,126.1,0.05776115]
[1766374500637,6.71,126.19,126.1,111.11546115]
[1766374500933,6.71,126.19,126.11,111.0516]
[1766374501339,13.8433,126.22,126.12,111.0437]
[1766374501528,6.71,126.22,126.15,7.1365]
[1766374501823,0.05983834,126.2,126.17,0.05886872]
[1766374503327,0.05983834,126.2,126.13,157.8735]
[1766374503328,6.76983834,126.2,126.13,53.9776]
[1766374503740,6.76983834,126.2,126.13,46.84]
[1766374503935,0.05983834,126.2,126.15,7.1366]
[1766374504440,0.05983834,126.2,126.16,0.05961951]
[1766374504935,0.05983834,126.2,126.16,7.19561951]
[1766374507833,0.05983834,126.2,126.16,0.05961951]
[1766374508626,6.54,126.28,126.18,110.991]
[1766374509638,0.05054497,126.24,126.22,0.05062329]
[1766374510029,6.54,126.28,126.22,0.05062329]
[1766374510635,6.54,126.31,126.22,7.18322329]
[1766374510940,6.54,126.31,126.22,110.9551]
[1766374511143,0.06080879,126.28,126.25,0.05183128]
[1766374511944,6.54,126.31,126.25,0.05183128]
[1766374513132,0.05890836,126.29,126.25,0.05183128]
[1766374515244,0.05890836,126.29,126.25,7.18273128]
[1766374515836,0.05890836,126.29,126.25,0.05183128]
[1766374516039,7.1265,126.34,126.26,7.1304]
[1766374516040,6.54,126.34,126.26,7.1304]
[1766374516340,6.54,126.34,126.25,56.8]
[1766374517034,0.05422834,126.31,126.28,0.05692245]
[1766374527045,0.00422834,126.31,126.28,0.05692245]
[1766374528544,0.00422834,126.31,126.28,7.18622245]
[1766374529449,0.00422834,126.31,126.28,0.05692245]
[1766374529640,6.73422834,126.31,126.25,46.8]
[1766374529846,8.21769595,126.31,126.25,46.8]
[1766374530349,15.34559595,126.31,126.25,46.8]
[1766374530540,6.73,126.3,126.25,46.8]
[1766374530746,6.73,126.3,126.27,0.00448969]
[1766374531140,13.8586,126.3,126.27,0.00448969]
[1766374531347,8.21346761,126.29,126.21,7.133]
[1766374532344,0.05439715,126.26,126.24,0.05557266]
[1766374533547,0.05439715,126.26,126.2,53.9137]
[1766374533751,0.05439715,126.26,126.17,110.9926]
[1766374533752,8.21346761,126.25,126.17,110.9926]
[1766374533939,8.21346761,126.25,126.16,159.26456761]
[1766374534141,8.21346761,126.25,126.16,48.26346761]
[1766374534549,0.05933423,126.22,126.19,0.05041565]
[1766374535342,6.62,126.27,126.2,7.1337]
[1766374535551,6.62,126.27,126.2,157.7527]